[Event "WYCC U14 Girls 2019"]
[Site "Mumbai"]
[Date "2019.10.03"]
[Round "3.5"]
[White "Roebers, Eline"]
[Black "Sulyok, Eszter"]
[Result "1-0"]
[ECO "A48"]
[WhiteElo "2083"]
[BlackElo "1893"]
[Annotator "NA"]
[PlyCount "184"]
[EventDate "2019.10.02"]
[EventType "swiss"]
[EventCountry "IND"]
[SourceTitle "playchess.com"]
[Source "ChessBase"]
[SourceQuality "1"]
[TimeControl "40/5400+30:1800+30"]

1. d4 Nf6 2. Nf3 g6 3. Bf4 Bg7 4. c3 O-O 5. h3 d6 6. Nbd2 b6 7. e3 Bb7 8. Be2 Nfd7 9. O-O e5 10. Bh2 Nc6 11. a4 a5 12. Bb5 Qe7 13. Rc1 e4 14. Ne1 Nd8 15. Nc2 f5 16. Na3 Kh8 17. Bc4 Nf6 18. Be2 Ne6 19. Re1 Bh6 20. Bf1 f4 21. exf4 Nxf4 22. f3 Rae8 23. Bb5 c6 24. Bf1 e3 25. Bxf4 Bxf4 26. Rc2 Nh5 27. Bd3 Bg3 28. Re2 Bf2+ 29. Kh2 Nf4 30. Nf1 Nxe2 31. Rxe2 Qf6 32. Nc2 Qf4+ 33. Kh1 Re7 34. Qc1 c5 35. b3 Qh4 36. Nh2 Bg3 37. Qg1 Bxh2 38. Qxh2 Qf6 39. Qg1 Rfe8 40. Bb5 Rf8 41. Rxe3 Qg5 42. Rxe7 Qxe7 43. Na3 Bd5 44. Qd1 Qf7 45. Bc4 Bxc4 46. Nxc4 Qc7 47. Qd2 Kg7 48. Ne3 Qf7 49. Nc4 Qf4 50. Qxf4 Rxf4 51. dxc5 dxc5 52. Nxb6 Rf7 53. Nc4 Ra7 54. Kg1 Kf6 55. Kf2 Ke6 56. Ke3 Kd5 57. f4 Re7+ 58. Kd3 Re1 59. Ne3+ Kc6 60. Kd2 Ra1 61. Kd3 Ra2 62. g4 Rh2 63. f5 gxf5 64. gxf5 Rxh3 65. Ke4 Kd6 66. Kf4 Ke7 67. Nd5+ Kf7 68. Ke5 Rf3 69. Ke4 Rf2 70. b4 cxb4 71. cxb4 Ra2 72. bxa5 Rxa4+ 73. Kf3 Rxa5 74. Ne3 Ra4 75. Kg3 Kf6 76. Kf3 h5 77. Kg3 Kg5 78. Kf3 h4 79. Kg2 Kf4 80. Nf1 Kxf5 81. Nh2 Ra3 82. Nf1 h3+ 83. Kh2 Kg4 84. Kg1 Ra2 85. Nh2+ Kg3 86. Nf1+ Kh4 87. Nh2 Rg2+ 88. Kh1 Kg3 89. Nf3 Ra2 90. Ng1 Rb2 91. Ne2+ Rxe2 92. Kg1 Re1# 1-0

[Event "WYCC U14 Girls 2019"]
[Site "Mumbai"]
[Date "2019.10.03"]
[Round "3.6"]
[White "Poliakova, Varvara"]
[Black "Ruseva, Eva"]
[Result "1-0"]
[ECO "A02"]
[WhiteElo "2042"]
[BlackElo "1813"]
[Annotator "NA"]
[PlyCount "46"]
[EventDate "2019.10.02"]
[EventType "swiss"]
[EventCountry "IND"]
[SourceTitle "playchess.com"]
[Source "ChessBase"]
[SourceQuality "1"]
[TimeControl "40/5400+30:1800+30"]

1. f4 {[%emt 0:00:00]} c5 {[%emt 0:00:00]} 2. Nf3 {[%emt 0:00:00]} Nf6 {[%emt 0:00:00]} 3. g3 {[%emt 0:00:00]} g6 {[%emt 0:00:00]} 4. Bg2 {[%emt 0:00:00]} Bg7 {[%emt 0:00:00]} 5. d3 {[%emt 0:00:07]} Nc6 {[%emt 0:00:17]} 6. O-O {[%emt 0:00:16]} d6 {[%emt 0:00:43]} 7. Nc3 {[%emt 0:00:25]} O-O {[%emt 0:00:44]} 8. e4 {[%emt 0:00:44]} Rb8 {[%emt 0:02:23]} 9. a4 {[%emt 0:01:32]} a6 {[%emt 0:06:48]} 10. h3 {[%emt 0:05:30]} b5 {[%emt 0:01:50]} 11. axb5 {[%emt 0:01:00]} axb5 {[%emt 0:00:30]} 12. Rb1 {[%emt 0:00:30]} b4 {[%emt 0:00:30]} 13. Ne2 {[%emt 0:00:30]} e5 14. b3 Nh5 15. f5 h6 16. g4 Nf6 17. g5 hxg5 18. Nxg5 Nh7 19. Nxh7 Kxh7 20. Ng3 Qh4 21. Rf2 Bh6 22. Qe1 Bd7 23. Bf3 Be8 1-0

[Event "WYCC U14 Girls 2019"]
[Site "Mumbai"]
[Date "2019.10.03"]
[Round "3.7"]
[White "Dhyana Patel"]
[Black "Mirlankyzy, Azaliia"]
[Result "1-0"]
[ECO "C68"]
[WhiteElo "1995"]
[BlackElo "1473"]
[Annotator "NA"]
[PlyCount "113"]
[EventDate "2019.10.02"]
[EventType "swiss"]
[EventCountry "IND"]
[SourceTitle "playchess.com"]
[Source "ChessBase"]
[SourceQuality "1"]
[TimeControl "40/5400+30:1800+30"]

1. e4 e5 2. Nf3 Nc6 3. Bb5 a6 4. Bxc6 dxc6 5. O-O Bg4 6. h3 h5 7. d3 Qf6 8. Be3 Bxf3 9. Qxf3 Qxf3 10. gxf3 Bd6 11. Nd2 O-O-O 12. Rfb1 g6 13. Kf1 f5 14. Nc4 f4 15. Bd2 g5 16. Ke2 Nf6 17. Rg1 Rhg8 18. Rg2 h4 19. a4 Kd7 20. Rag1 Nh7 21. d4 Ke6 22. dxe5 Bxe5 23. Rd1 b5 24. Nxe5 Kxe5 25. Bc3+ Ke6 26. Rgg1 Rxd1 27. Rxd1 Rb8 28. axb5 axb5 29. Ra1 Kd7 30. Kd3 Nf8 31. Bf6 Ne6 32. e5 Rg8 33. Ke4 c5 34. c3 c4 35. Kf5 Nc5 36. e6+ Kc6 37. e7 Kd7 38. Rd1+ Nd3 39. b3 Ke8 40. bxc4 bxc4 41. Ke6 Nc5+ 42. Kf5 Nd3 43. Rd2 Kf7 44. Re2 Nc1 45. Re4 Nd3 46. Rxc4 c5 47. Bxg5 Nxf2 48. Bxh4 Nxh3 49. Rxc5 Rh8 50. Kg4 Ng1 51. Rf5+ Ke8 52. Rxf4 Ne2 53. Rc4 Kf7 54. Rc7 Re8 55. Kf5 Ra8 56. e8=Q+ Kxe8 57. Re7+ 1-0

[Event "WYCC U14 Girls 2019"]
[Site "Mumbai"]
[Date "2019.10.03"]
[Round "3.8"]
[White "Ince, Safiye Oyku"]
[Black "Obada, Ema"]
[Result "1-0"]
[ECO "C05"]
[WhiteElo "1840"]
[BlackElo "1987"]
[Annotator "NA"]
[PlyCount "63"]
[EventDate "2019.10.02"]
[EventType "swiss"]
[EventCountry "IND"]
[SourceTitle "playchess.com"]
[Source "ChessBase"]
[SourceQuality "1"]
[TimeControl "40/5400+30:1800+30"]

1. e4 {[%emt 0:00:00]} e6 {[%emt 0:00:00]} 2. d4 {[%emt 0:00:00]} d5 {[%emt 0:00:00]} 3. Nd2 {[%emt 0:00:00]} Nf6 {[%emt 0:00:00]} 4. e5 {[%emt 0:00:00]} Nfd7 {[%emt 0:00:00]} 5. f4 {[%emt 0:00:00]} c5 {[%emt 0:00:38]} 6. c3 {[%emt 0:00:03]} b6 {[%emt 0:09:58]} 7. Ndf3 {[%emt 0:05:58]} Be7 {[%emt 0:06:22]} 8. Bd3 {[%emt 0:00:20]} g6 {[%emt 0:00:55]} 9. Ne2 {[%emt 0:02:10]} Ba6 {[%emt 0:00:14]} 10. Bb1 {[%emt 0:03:30]} Nc6 {[%emt 0:01:46]} 11. O-O {[%emt 0:01:14]} b5 {[%emt 0:13:54]} 12. g4 {[%emt 0:06:17]} Qb6 {[%emt 0:09:21]} 13. Rf2 {[%emt 0:09:57]} O-O-O {[%emt 0:09:38]} 14. a4 {[%emt 0:09:10]} b4 {[%emt 0:04:36]} 15. cxb4 {[%emt 0:06:21]} cxb4 {[%emt 0:01:42]} 16. a5 {[%emt 0:02:18]} Qb7 {[%emt 0:07:41]} 17. f5 {[%emt 0:07:56]} gxf5 {[%emt 0:03:11]} 18. gxf5 {[%emt 0:00:21]} Rdg8+ {[%emt 0:06:19]} 19. Kh1 {[%emt 0:00:47]} Bxe2 {[%emt 0:05:30]} 20. Qxe2 {[%emt 0:00:54]} Rg4 {[%emt 0:01:51]} 21. Bd3 {[%emt 0:01:37]} Ndb8 {[%emt 0:03:32]} 22. Be3 {[%emt 0:03:01]} h5 {[%emt 0:01:34]} 23. Rc1 {[%emt 0:02:17]} Kd7 {[%emt 0:03:24]} 24. h3 {[%emt 0:03:59]} Rg3 {[%emt 0:02:00]} 25. Kh2 {[%emt 0:00:07]} Rhg8 {[%emt 0:00:36]} 26. f6 {[%emt 0:02:46]} Bd8 {[%emt 0:01:32]} 27. Bh7 {[%emt 0:00:15]} Bxa5 {[%emt 0:01:28]} 28. Bxg8 {[%emt 0:00:29]} Rxg8 {[%emt 0:00:04]} 29. Ng5 {[%emt 0:00:23]} Nd8 {[%emt 0:02:11]} 30. Qxh5 {[%emt 0:00:09]} Ke8 {[%emt 0:01:40]} 31. Rg1 {[%emt 0:01:10]} Bc7 {[%emt 0:01:30]} 32. Nxf7 {[%emt 0:00:44]} 1-0

[Event "WYCC U14 Girls 2019"]
[Site "Mumbai"]
[Date "2019.10.03"]
[Round "3.9"]
[White "Cassi, Elisa"]
[Black "Mungunzul, Bat-Erdene"]
[Result "0-1"]
[ECO "D05"]
[WhiteElo "1803"]
[BlackElo "1912"]
[Annotator "NA"]
[PlyCount "74"]
[EventDate "2019.10.02"]
[EventType "swiss"]
[EventCountry "IND"]
[SourceTitle "playchess.com"]
[Source "ChessBase"]
[SourceQuality "1"]
[TimeControl "40/5400+30:1800+30"]

1. d4 {[%emt 0:00:00]} d5 {[%emt 0:00:00]} 2. e3 {[%emt 0:00:00]} Nf6 {[%emt 0:00:00]} 3. Bd3 {[%emt 0:00:00]} c5 {[%emt 0:01:18]} 4. c3 {[%emt 0:00:12]} Nbd7 {[%emt 0:00:40]} 5. Nd2 {[%emt 0:03:21]} e5 {[%emt 0:05:47]} 6. dxe5 {[%emt 0:08:11]} Nxe5 {[%emt 0:00:09]} 7. Bb5+ {[%emt 0:07:53]} Bd7 {[%emt 0:00:54]} 8. Bxd7+ {[%emt 0:01:24]} Qxd7 {[%emt 0:00:14]} 9. Ndf3 {[%emt 0:00:50]} Ng6 {[%emt 0:01:47]} 10. Ne2 {[%emt 0:01:12]} Bd6 {[%emt 0:00:27]} 11. b3 {[%emt 0:05:15]} O-O {[%emt 0:04:05]} 12. Bb2 Rfd8 {[%emt 0:06:41]} 13. Qc2 {[%emt 0:06:24]} Qg4 {[%emt 0:03:29]} 14. O-O {[%emt 0:01:43]} Nh4 {[%emt 0:01:14]} 15. Nxh4 {[%emt 0:02:33]} Bxh2+ {[%emt 0:00:59]} 16. Kh1 {[%emt 0:10:00]} Qxh4 {[%emt 0:00:17]} 17. Ng1 {[%emt 0:03:12]} Bxg1+ {[%emt 0:06:52]} 18. Kxg1 {[%emt 0:00:06]} Ng4 {[%emt 0:00:10]} 19. Rfe1 {[%emt 0:05:42]} Qh2+ {[%emt 0:01:11]} 20. Kf1 {[%emt 0:00:03]} Qh1+ {[%emt 0:00:10]} 21. Ke2 {[%emt 0:00:04]} Qxg2 {[%emt 0:00:12]} 22. Qf5 {[%emt 0:02:45]} Qe4 {[%emt 0:01:58]} 23. Qxe4 {[%emt 0:08:31]} dxe4 {[%emt 0:00:07]} 24. Rh1 {[%emt 0:02:16]} Nxf2 {[%emt 0:01:46]} 25. Kxf2 {[%emt 0:01:03]} Rd2+ {[%emt 0:00:09]} 26. Kg3 {[%emt 0:00:02]} Rxb2 {[%emt 0:00:11]} 27. Kf4 {[%emt 0:03:54]} Re8 {[%emt 0:00:24]} 28. Rh5 {[%emt 0:02:49]} b6 {[%emt 0:01:21]} 29. Rd5 {[%emt 0:03:48]} Rf2+ {[%emt 0:00:43]} 30. Kg4 {[%emt 0:00:30]} g6 {[%emt 0:00:45]} 31. Rd7 {[%emt 0:00:36]} Rf3 {[%emt 0:00:35]} 32. Rd5 {[%emt 0:00:24]} Rf2 {[%emt 0:00:25]} 33. Rd7 {[%emt 0:00:36]} Rf3 {[%emt 0:00:35]} 34. Rxa7 {[%emt 0:04:03]} h5+ {[%emt 0:01:45]} 35. Kg5 {[%emt 0:00:46]} Kg7 {[%emt 0:00:23]} 36. Re1 {[%emt 0:05:04]} Re5+ {[%emt 0:00:13]} 37. Kh4 {[%emt 0:00:09]} Kh6 {[%emt 0:00:06]} 0-1

[Event "WYCC U14 Girls 2019"]
[Site "Mumbai"]
[Date "2019.10.03"]
[Round "3.10"]
[White "Croisille, Shanti"]
[Black "Omonova, Umida"]
[Result "0-1"]
[ECO "B36"]
[WhiteElo "1639"]
[BlackElo "2078"]
[Annotator "NA"]
[PlyCount "72"]
[EventDate "2019.10.02"]
[EventType "swiss"]
[EventCountry "IND"]
[SourceTitle "playchess.com"]
[Source "ChessBase"]
[SourceQuality "1"]
[TimeControl "40/5400+30:1800+30"]

1. e4 {[%emt 0:00:00]} c5 {[%emt 0:00:26]} 2. Nf3 {[%emt 0:00:00]} Nc6 {[%emt 0:00:29]} 3. d4 {[%emt 0:00:00]} cxd4 {[%emt 0:02:52]} 4. Nxd4 {[%emt 0:00:00]} g6 {[%emt 0:01:10]} 5. c4 {[%emt 0:00:06]} Nf6 {[%emt 0:00:21]} 6. Nc3 {[%emt 0:00:08]} d6 {[%emt 0:00:53]} 7. Be2 {[%emt 0:00:20]} Nxd4 {[%emt 0:00:10]} 8. Qxd4 {[%emt 0:00:29]} Bg7 {[%emt 0:00:24]} 9. Be3 {[%emt 0:01:46]} O-O {[%emt 0:01:12]} 10. Qd2 {[%emt 0:00:20]} Be6 {[%emt 0:02:45]} 11. Rc1 {[%emt 0:02:39]} a5 {[%emt 0:01:59]} 12. b3 {[%emt 0:00:42]} a4 {[%emt 0:08:19]} 13. f3 {[%emt 0:02:21]} axb3 {[%emt 0:00:46]} 14. axb3 {[%emt 0:00:09]} Qa5 {[%emt 0:02:29]} 15. O-O {[%emt 0:01:07]} Rfc8 {[%emt 0:04:45]} 16. Rb1 {[%emt 0:03:25]} Nd7 {[%emt 0:05:52]} 17. Rbc1 {[%emt 0:00:00]} Nf6 {[%emt 0:00:00]} 18. Rb1 {[%emt 0:01:00]} Nd7 {[%emt 0:01:00]} 19. Rfc1 {[%emt 0:04:45]} h5 {[%emt 0:04:25]} 20. Bf1 {[%emt 0:08:34]} Qb4 {[%emt 0:08:27]} 21. Rc2 {[%emt 0:07:34]} Nc5 {[%emt 0:00:00]} 22. Rcc1 {[%emt 0:00:00]} Nd7 {[%emt 0:01:00]} 23. Rc2 {[%emt 0:01:00]} Nc5 {[%emt 0:06:59]} 24. Nd5 {[%emt 0:02:41]} Qxd2 {[%emt 0:00:55]} 25. Rxd2 {[%emt 0:00:10]} Bxd5 {[%emt 0:00:07]} 26. Rxd5 {[%emt 0:01:36]} Ra3 {[%emt 0:02:34]} 27. Bd4 {[%emt 0:06:11]} Bxd4+ {[%emt 0:02:08]} 28. Rxd4 {[%emt 0:00:21]} Rxb3 {[%emt 0:00:22]} 29. Rxb3 {[%emt 0:03:05]} Nxb3 {[%emt 0:00:07]} 30. Rd3 {[%emt 0:02:02]} Nc5 {[%emt 0:00:03]} 31. Ra3 {[%emt 0:00:33]} Rc6 {[%emt 0:00:01]} 32. Kf2 {[%emt 0:02:19]} Kg7 {[%emt 0:01:11]} 33. Ke3 {[%emt 0:00:34]} Rb6 {[%emt 0:00:45]} 34. Ra2 {[%emt 0:02:03]} Rb3+ {[%emt 0:01:08]} 35. Kd2 {[%emt 0:02:20]} Kf6 {[%emt 0:00:15]} 36. f4 {[%emt 0:02:39]} Nxe4+ {[%emt 0:00:24]} 0-1

[Event "WYCC U14 Girls 2019"]
[Site "Mumbai"]
[Date "2019.10.03"]
[Round "3.11"]
[White "Swara Lakshmi S Nair"]
[Black "Kamalidenova, Meruert"]
[Result "0-1"]
[ECO "B90"]
[WhiteElo "1536"]
[BlackElo "2025"]
[Annotator "NA"]
[PlyCount "104"]
[EventDate "2019.10.02"]
[EventType "swiss"]
[EventCountry "IND"]
[SourceTitle "playchess.com"]
[Source "ChessBase"]
[SourceQuality "1"]
[TimeControl "40/5400+30:1800+30"]

1. e4 c5 2. Nf3 d6 3. d4 cxd4 4. Nxd4 Nf6 5. Nc3 a6 6. Bc4 e6 7. O-O b5 8. Bb3 Be7 9. f4 Qc7 10. Be3 Nc6 11. Qf3 Nxd4 12. Bxd4 Bb7 13. a3 O-O 14. Rad1 Nd7 15. f5 e5 16. Be3 Rac8 17. Kh1 Nf6 18. Rfe1 Qb8 19. Bc1 a5 20. Qg3 Rxc3 21. bxc3 Nxe4 22. Rxe4 Bxe4 23. Qg4 Qb7 24. Bh6 g6 25. fxg6 hxg6 26. Rf1 d5 27. Bxf8 Bxf8 28. a4 bxa4 29. Bxa4 Qa6 30. Qd1 Kg7 31. Be8 f6 32. Re1 Qc4 33. Qg4 Qxc3 34. Qd7+ Kh6 35. Rg1 Bc5 36. Rc1 Qe3 37. Rf1 a4 38. Qg4 Bf5 39. Qh4+ Kg7 40. Qxa4 Qe2 41. Bb5 Qd2 42. Qa6 Qxc2 43. Qb7+ Kh6 44. Qb8 Kg5 45. Qh8 Bf2 46. Qd8 d4 47. Bd7 Qe2 48. h4+ Bxh4 49. Rf3 Bf2 50. Bxf5 Qf1+ 51. Kh2 Qg1+ 52. Kh3 Qh1# 0-1

[Event "WYCC U14 Girls 2019"]
[Site "Mumbai"]
[Date "2019.10.03"]
[Round "3.12"]
[White "Ishvi Aggarwal"]
[Black "Ananya Arumbakkam"]
[Result "1-0"]
[ECO "E04"]
[WhiteElo "1935"]
[BlackElo "1583"]
[Annotator "NA"]
[PlyCount "49"]
[EventDate "2019.10.02"]
[EventType "swiss"]
[EventCountry "IND"]
[SourceTitle "playchess.com"]
[Source "ChessBase"]
[SourceQuality "1"]
[TimeControl "40/5400+30:1800+30"]

1. d4 {[%emt 0:00:00]} d5 {[%emt 0:00:00]} 2. c4 {[%emt 0:00:00]} e6 {[%emt 0:00:00]} 3. Nf3 {[%emt 0:00:00]} Nf6 {[%emt 0:00:00]} 4. g3 {[%emt 0:00:00]} dxc4 {[%emt 0:00:34]} 5. Bg2 {[%emt 0:00:00]} a6 {[%emt 0:00:25]} 6. Ne5 {[%emt 0:01:29]} c5 {[%emt 0:03:02]} 7. Nxc4 {[%emt 0:02:29]} Be7 {[%emt 0:02:48]} 8. O-O {[%emt 0:00:44]} O-O {[%emt 0:00:26]} 9. dxc5 {[%emt 0:00:43]} Bxc5 {[%emt 0:00:14]} 10. Nc3 {[%emt 0:01:18]} Qc7 {[%emt 0:04:45]} 11. Bf4 {[%emt 0:03:01]} Bxf2+ {[%emt 0:02:04]} 12. Rxf2 {[%emt 0:00:06]} Qxc4 {[%emt 0:00:06]} 13. Bd6 {[%emt 0:00:07]} Bd7 {[%emt 0:08:01]} 14. Bxf8 {[%emt 0:01:43]} Kxf8 {[%emt 0:00:08]} 15. Qd6+ {[%emt 0:01:00]} Kg8 {[%emt 0:03:07]} 16. Bxb7 {[%emt 0:01:25]} Ne8 {[%emt 0:01:39]} 17. Qe7 {[%emt 0:00:53]} f6 {[%emt 0:02:46]} 18. Bxa8 {[%emt 0:00:32]} h5 {[%emt 0:05:39]} 19. Rd1 {[%emt 0:04:51]} Qc8 {[%emt 0:00:11]} 20. Bf3 {[%emt 0:00:48]} Bc6 {[%emt 0:01:08]} 21. Rd8 {[%emt 0:00:35]} Qb7 {[%emt 0:00:59]} 22. Rxe8+ {[%emt 0:01:29]} Kh7 {[%emt 0:00:26]} 23. Qxe6 {[%emt 0:00:54]} Bxf3 {[%emt 0:00:09]} 24. Qf5+ {[%emt 0:00:12]} Kh6 {[%emt 0:00:05]} 25. Rh8# {[%emt 0:00:05]} 1-0

[Event "WYCC U14 Girls 2019"]
[Site "Mumbai"]
[Date "2019.10.04"]
[Round "4.1"]
[White "Dhyana Patel"]
[Black "Roebers, Eline"]
[Result "1/2-1/2"]
[ECO "B48"]
[WhiteElo "1995"]
[BlackElo "2083"]
[Annotator "NA"]
[PlyCount "108"]
[EventDate "2019.10.02"]
[EventType "swiss"]
[EventCountry "IND"]
[SourceTitle "playchess.com"]
[Source "ChessBase"]
[SourceQuality "1"]
[TimeControl "40/5400+30:1800+30"]

1. e4 {[%emt 0:00:00]} c5 {[%emt 0:00:00]} 2. Nf3 {[%emt 0:00:00]} e6 {[%emt 0:00:01]} 3. d4 {[%emt 0:00:16]} cxd4 {[%emt 0:00:08]} 4. Nxd4 {[%emt 0:00:05]} Nc6 {[%emt 0:00:10]} 5. Nc3 {[%emt 0:00:13]} Qc7 {[%emt 0:00:09]} 6. Be3 {[%emt 0:00:13]} a6 {[%emt 0:00:22]} 7. Qd2 {[%emt 0:00:46]} Nf6 {[%emt 0:00:31]} 8. O-O-O {[%emt 0:00:39]} Be7 {[%emt 0:01:45]} 9. f3 {[%emt 0:01:33]} b5 {[%emt 0:04:14]} 10. Nxc6 {[%emt 0:00:48]} dxc6 {[%emt 0:00:31]} 11. g4 {[%emt 0:04:37]} O-O {[%emt 0:02:30]} 12. Qf2 {[%emt 0:01:24]} e5 {[%emt 0:09:24]} 13. h4 {[%emt 0:00:48]} Be6 {[%emt 0:03:38]} 14. g5 {[%emt 0:04:23]} Nh5 {[%emt 0:03:02]} 15. Bh3 {[%emt 0:05:15]} Qc8 {[%emt 0:00:00]} 16. Qd2 {[%emt 0:00:00]} Qc7 {[%emt 0:01:00]} 17. Qf2 {[%emt 0:01:00]} Qc8 {[%emt 0:11:28]} 18. Qh2 {[%emt 0:08:40]} Bxh3 {[%emt 0:11:17]} 19. Qxh3 {[%emt 0:00:32]} Qxh3 {[%emt 0:00:05]} 20. Rxh3 {[%emt 0:00:06]} Rfd8 {[%emt 0:01:06]} 21. Rxd8+ {[%emt 0:02:43]} Rxd8 {[%emt 0:00:10]} 22. Ne2 {[%emt 0:02:16]} Bd6 {[%emt 0:02:50]} 23. Rh1 {[%emt 0:03:24]} Bc7 {[%emt 0:07:37]} 24. b3 {[%emt 0:09:50]} f6 {[%emt 0:11:56]} 25. Kb2 {[%emt 0:05:26]} Kf7 {[%emt 0:01:09]} 26. Rg1 {[%emt 0:03:16]} Bd6 {[%emt 0:09:14]} 27. c3 {[%emt 0:02:16]} Ke6 {[%emt 0:11:02]} 28. Kc2 {[%emt 0:01:13]} f5 {[%emt 0:03:33]} 29. Rf1 {[%emt 0:01:50]} Rf8 {[%emt 0:01:25]} 30. Rf2 {[%emt 0:01:57]} f4 {[%emt 0:02:04]} 31. Bd2 {[%emt 0:00:34]} Ng3 {[%emt 0:00:50]} 32. Rg2 {[%emt 0:03:01]} Nf1 {[%emt 0:00:58]} 33. Nc1 {[%emt 0:08:21]} Nxd2 {[%emt 0:01:36]} 34. Kxd2 {[%emt 0:01:24]} Rd8 {[%emt 0:00:23]} 35. Nd3 {[%emt 0:01:13]} Be7 {[%emt 0:00:25]} 36. Kc2 {[%emt 0:00:20]} a5 {[%emt 0:00:46]} 37. Rg1 {[%emt 0:00:48]} Rd7 {[%emt 0:00:30]} 38. Rg2 {[%emt 0:00:35]} Rd8 {[%emt 0:00:13]} 39. Rg1 {[%emt 0:00:32]} Bd6 {[%emt 0:00:48]} 40. Rg2 {[%emt 0:01:29]} Bc7 {[%emt 0:00:29]} 41. Rg1 {[%emt 0:31:37]} Bb6 {[%emt 0:30:14]} 42. Rg2 {[%emt 0:00:07]} Be3 {[%emt 0:00:25]} 43. Rg4 {[%emt 0:01:43]} Rc8 {[%emt 0:00:00]} 44. Rg2 {[%emt 0:00:00]} Rc7 {[%emt 0:00:00]} 45. Rg4 {[%emt 0:00:00]} c5 {[%emt 0:00:00]} 46. c4 {[%emt 0:00:00]} b4 {[%emt 0:00:00]} 47. Rg2 {[%emt 0:00:00]} Ra7 {[%emt 0:00:00]} 48. Nb2 {[%emt 0:00:00]} Bd4 {[%emt 0:00:00]} 49. Na4 {[%emt 0:00:00]} Ra6 {[%emt 0:00:00]} 50. Kc1 {[%emt 0:00:00]} Kf7 {[%emt 0:00:14]} 51. h5 {[%emt 0:00:00]} Rd6 {[%emt 0:01:06]} 52. Kc2 {[%emt 0:00:00]} Be3 {[%emt 0:00:36]} 53. Nb2 {[%emt 0:00:00]} Bd4 {[%emt 0:01:13]} 54. Na4 {[%emt 0:00:00]} Rc6 {[%emt 0:00:19]} 1/2-1/2

[Event "WYCC U14 Girls 2019"]
[Site "Mumbai"]
[Date "2019.10.04"]
[Round "4.2"]
[White "Kurmangaliyeva, Liya"]
[Black "Poliakova, Varvara"]
[Result "1/2-1/2"]
[ECO "B01"]
[WhiteElo "1936"]
[BlackElo "2042"]
[Annotator "NA"]
[PlyCount "65"]
[EventDate "2019.10.02"]
[EventType "swiss"]
[EventCountry "IND"]
[SourceTitle "playchess.com"]
[Source "ChessBase"]
[SourceQuality "1"]
[TimeControl "40/5400+30:1800+30"]

1. e4 {[%emt 0:00:00]} d5 {[%emt 0:00:00]} 2. exd5 {[%emt 0:00:00]} Qxd5 {[%emt 0:00:00]} 3. Nc3 {[%emt 0:00:35]} Qd6 {[%emt 0:00:37]} 4. d4 {[%emt 0:01:09]} Nf6 {[%emt 0:01:04]} 5. Nf3 {[%emt 0:01:03]} c6 {[%emt 0:02:55]} 6. Ne5 {[%emt 0:02:40]} Nbd7 {[%emt 0:06:14]} 7. Nc4 {[%emt 0:00:33]} Qc7 {[%emt 0:01:35]} 8. Qf3 {[%emt 0:00:31]} Nb6 {[%emt 0:02:01]} 9. Bf4 {[%emt 0:00:24]} Qd8 {[%emt 0:01:45]} 10. Be5 {[%emt 0:02:15]} Nbd5 {[%emt 0:03:37]} 11. Nxd5 {[%emt 0:10:14]} Qxd5 {[%emt 0:04:18]} 12. Qd3 {[%emt 0:03:44]} Ng4 {[%emt 0:10:00]} 13. Bg3 {[%emt 0:13:27]} Bf5 {[%emt 0:02:54]} 14. Qe2 {[%emt 0:01:56]} e6 {[%emt 0:03:10]} 15. f3 {[%emt 0:10:53]} Nf6 {[%emt 0:01:08]} 16. O-O-O {[%emt 0:02:33]} Bg6 {[%emt 0:06:03]} 17. Kb1 {[%emt 0:02:23]} Be7 {[%emt 0:02:10]} 18. Ne5 {[%emt 0:02:03]} Qa5 {[%emt 0:05:52]} 19. Nxg6 {[%emt 0:04:23]} hxg6 {[%emt 0:00:07]} 20. Be5 {[%emt 0:03:22]} O-O-O {[%emt 0:02:47]} 21. c3 {[%emt 0:05:06]} Qb6 {[%emt 0:04:21]} 22. Bxf6 {[%emt 0:05:41]} Bxf6 {[%emt 0:01:47]} 23. Qc2 {[%emt 0:00:40]} Qc7 {[%emt 0:01:07]} 24. h3 {[%emt 0:01:46]} Rd7 {[%emt 0:00:37]} 25. Bd3 {[%emt 0:00:48]} Rhd8 {[%emt 0:01:40]} 26. Qe2 {[%emt 0:00:45]} Qf4 {[%emt 0:01:40]} 27. Rhe1 {[%emt 0:00:59]} Kc7 {[%emt 0:03:34]} 28. Kc2 {[%emt 0:02:29]} Re7 {[%emt 0:02:54]} 29. Qe4 {[%emt 0:02:12]} Qg3 {[%emt 0:02:43]} 30. Qg4 {[%emt 0:00:56]} Qxg4 {[%emt 0:02:25]} 31. hxg4 {[%emt 0:00:27]} Ree8 {[%emt 0:01:01]} 32. Rh1 {[%emt 0:00:57]} Rh8 {[%emt 0:00:05]} 33. Be4 {[%emt 0:02:19]} 1/2-1/2

[Event "WYCC U14 Girls 2019"]
[Site "Mumbai"]
[Date "2019.10.04"]
[Round "4.5"]
[White "Nasyrova, Ekaterina"]
[Black "Hakobyan, Astghik"]
[Result "1-0"]
[ECO "A05"]
[WhiteElo "2137"]
[BlackElo "1978"]
[Annotator "NA"]
[PlyCount "91"]
[EventDate "2019.10.02"]
[EventType "swiss"]
[EventCountry "IND"]
[SourceTitle "playchess.com"]
[Source "ChessBase"]
[SourceQuality "1"]
[TimeControl "40/5400+30:1800+30"]

1. Nf3 Nf6 2. c4 e6 3. e3 b6 4. g3 Bb7 5. Bg2 Be7 6. O-O O-O 7. b3 c5 8. Bb2 d5 9. Nc3 Nc6 10. cxd5 exd5 11. d4 Re8 12. Ne2 Ne4 13. Nf4 Ba6 14. Re1 cxd4 15. Nxd4 Nxd4 16. Bxd4 Bb4 17. Qg4 g5 18. Rec1 Bc8 19. Rxc8 Rxc8 20. Nh5 Ra8 21. Nf4 Rc8 22. Nh5 Bc3 23. Bxe4 Rxe4 24. Nf6+ Kf8 25. Nxh7+ Ke8 26. Nf6+ Kf8 27. Nxe4 Bxa1 28. Nxg5 Bxd4 29. exd4 Rc1+ 30. Kg2 Qe7 31. Qf4 Rc6 32. h4 Rg6 33. Qf5 Rd6 34. h5 Ke8 35. g4 Qd7 36. Qf4 Qe7 37. Nf3 f6 38. h6 Kd7 39. Nh4 Re6 40. Qf5 Kd6 41. Ng6 Qf7 42. h7 Qxh7 43. Qxe6+ Kxe6 44. Nf8+ Kf7 45. Nxh7 Kg7 46. Nxf6 1-0